Workbook

Sheet electricity consumption
A1: Personal Energy Meter
A3: *Energy cost based on total kWh (kilowatt-hours) X cost per kWh. Use default electric cost of $0.15/kWh or enter another value: | L3: 0.15
A5: Column: A | B5: B | C5: C | D5: D | E5: E | F5: F | G5: G | H5: H | I5: I | J5: J | K5: K | L5: L | M5: M
B6: Energy Tracker (Hours/Day) | I6: Cost Calculator
A7: Appliance | B7: Day 1 | C7: Day 2 | D7: Day 3 | E7: Day 4 | F7: Day 5 | G7: Day 6 | H7: Day 7 | I7: Total Hours | J7: Wattage | K7: Total Wh | L7: Total kWh | M7: Energy Cost*
A8: Television (19") | B8: 1.5 | C8: 2.5 | D8: 2 | E8: 1 | F8: 2.5 | G8: 2.5 | H8: 3 | I8: =SUM(B8:H8) -> 15 | J8: 100 | L8: =PRODUCT(I8,J8)/1000 -> 1.5 | M8: =PRODUCT(L3,L8) -> 0.225
A9: Space heater | B9: 4 | C9: 3.5 | D9: 5 | E9: 6 | F9: 5.5 | G9: 4.5 | H9: 5 | I9: =SUM(B9:H9) -> 33.5 | J9: 1500 | L9: =PRODUCT(I9,J9)/1000 -> 50.25 | M9: =PRODUCT(L3,L9) -> 7.5375
A10: Personal computer | B10: 2 | C10: 1 | D10: 1.5 | E10: 0 | F10: 1 | G10: 2 | H10: 2.5 | I10: 10 | J10: 200 | L10: =PRODUCT(I10,J10)/1000 -> 2 | M10: =PRODUCT(L3,L10) -> 0.3
I11: 0 | L11: 0 | M11: =PRODUCT(L3,L11) -> 0
I12: 0 | L12: 0 | M12: =PRODUCT(L3,L12) -> 0
I13: 0 | L13: 0 | M13: =PRODUCT(L3,L13) -> 0
I14: 0 | L14: 0 | M14: =PRODUCT(L3,L14) -> 0
I15: 0 | L15: 0 | M15: =PRODUCT(L3,L15) -> 0
I16: 0 | L16: 0 | M16: =PRODUCT(L3,L16) -> 0
I17: 0 | L17: 0 | M17: =PRODUCT(L3,L17) -> 0
I18: 0 | L18: 0 | M18: =PRODUCT(L3,L18) -> 0
I19: 0 | L19: 0 | M19: =PRODUCT(L3,L19) -> 0
I20: 0 | L20: 0 | M20: =PRODUCT(L3,L20) -> 0
I21: 0 | L21: 0 | M21: =PRODUCT(L3,L21) -> 0
I22: 0 | L22: 0 | M22: =PRODUCT(L3,L22) -> 0
I23: 0 | L23: 0 | M23: =PRODUCT(L3,L23) -> 0
I24: 0 | L24: 0 | M24: =PRODUCT(L3,L24) -> 0
I25: 0 | L25: 0 | M25: =PRODUCT(L3,L25) -> 0
I26: 0 | L26: 0 | M26: =PRODUCT(L3,L26) -> 0
I27: 0 | L27: 0 | M27: =PRODUCT(L3,L27) -> 0
I28: 0 | L28: 0 | M28: =PRODUCT(L3,L28) -> 0
I29: 0 | L29: 0 | M29: =PRODUCT(L3,L29) -> 0
I30: 0 | L30: 0 | M30: =PRODUCT(L3,L30) -> 0
A31: Total for Week: | L31: =SUM(L8:L30) -> 53.75 | M31: =SUM(M8:M30) -> 8.0625

Sheet Leaking Electricity
A1: Personal Energy Meter - Leaking Electricity
A3: *Energy cost based on total kWh (kilowatt-hours) X cost per kWh. Use default electric cost of $0.15/kWh or enter another value: | L3: 0.15
A4: Are your appliances leaking electricity? Use the Watt Meter or the information provided to determine which appliances in your household are using electricity when in standby mode. Enter the information in the table below.
A6: Column: A | B6: B | C6: C | D6: D | E6: E | F6: F | G6: G | H6: H | I6: I | J6: J | K6: K | L6: L | M6: M
B7: Energy Tracker (Hours/Day appliance is OFF) | I7: Cost Calculator
A8: Appliance | B8: Day 1 | C8: Day 2 | D8: Day 3 | E8: Day 4 | F8: Day 5 | G8: Day 6 | H8: Day 7 | I8: Total Hours | J8: Leaking Watts | K8: Total Wh Leaked | L8: Total kWh | M8: Energy Cost*
A9: Television (19") | B9: 22.5 | C9: 20.5 | D9: 22 | E9: 23 | F9: 21.5 | G9: 21.5 | H9: 21 | I9: =SUM(B9:H9) -> 152 | J9: 4 | L9: =PRODUCT(I9,J9)/1000 -> 0.608 | M9: =PRODUCT(L3,L9) -> 0.0912
A10: Space heater | B10: 20 | C10: 21.5 | D10: 19 | E10: 18 | F10: 18.5 | G10: 19.5 | H10: 19 | I10: =SUM(B10:H10) -> 135.5 | J10: 5 | L10: =PRODUCT(I10,J10)/1000 -> 0.6775 | M10: =PRODUCT(L3,L10) -> 0.101625
A11: Personal computer | B11: 22 | C11: 23 | D11: 22.5 | E11: 24 | F11: 23 | G11: 22 | H11: 21.5 | I11: 158 | J11: 10 | L11: =PRODUCT(I11,J11)/1000 -> 1.58 | M11: =PRODUCT(L3,L11) -> 0.237
I12: 0 | L12: 0 | M12: =PRODUCT(L3,L12) -> 0
I13: 0 | L13: 0 | M13: =PRODUCT(L3,L13) -> 0
I14: 0 | L14: 0 | M14: =PRODUCT(L3,L14) -> 0
I15: 0 | L15: 0 | M15: =PRODUCT(L3,L15) -> 0
I16: 0 | L16: 0 | M16: =PRODUCT(L3,L16) -> 0
I17: 0 | L17: 0 | M17: =PRODUCT(L3,L17) -> 0
I18: 0 | L18: 0 | M18: =PRODUCT(L3,L18) -> 0
I19: 0 | L19: 0 | M19: =PRODUCT(L3,L19) -> 0
I20: 0 | L20: 0 | M20: =PRODUCT(L3,L20) -> 0
I21: 0 | L21: 0 | M21: =PRODUCT(L3,L21) -> 0
I22: 0 | L22: 0 | M22: =PRODUCT(L3,L22) -> 0
I23: 0 | L23: 0 | M23: =PRODUCT(L3,L23) -> 0
I24: 0 | L24: 0 | M24: =PRODUCT(L3,L24) -> 0
I25: 0 | L25: 0 | M25: =PRODUCT(L3,L25) -> 0
I26: 0 | L26: 0 | M26: =PRODUCT(L3,L26) -> 0
I27: 0 | L27: 0 | M27: =PRODUCT(L3,L27) -> 0
I28: 0 | L28: 0 | M28: =PRODUCT(L3,L28) -> 0
I29: 0 | L29: 0 | M29: =PRODUCT(L3,L29) -> 0
I30: 0 | L30: 0 | M30: =PRODUCT(L3,L30) -> 0
I31: 0 | L31: 0 | M31: =PRODUCT(L3,L31) -> 0
A32: Total for Week: | L32: =SUM(L9:L31) -> 2.8655 | M32: =SUM(M9:M31) -> 0.429825

Sheet Sheet3
